Workbook

Sheet Instructions
F1: Grain elevators and feed mills Air emissions calculator
F2: p-sbap5-28 • 6/6/23
B5: Instructions
B6: 1) Start with the Federal Standards tab to identify if a federal rule applies to your business.
B7: 2) Next, go to the MN Bulk Ag. Rule tab. Find out about nuisance rules that all grain handling facilities are required to follow, Minnesota's rules for bulk agricultural commodities, and whether you need to control emissions (either by using emission control equipment, other means of controlling or minimizing emissions).
B10: 3) Enter information on the other blue tabs to calculate your potential air emissions from other activities, including grain dryers.
B11: 4) The green tabs total the potential and actual emissions from the information you entered in the blue tabs. The emission totals will help you decide which permit to apply for.
B13: 5) The Permits & Requirements tab summarizes the information you entered in the blue tabs, what your emissions mean, and what type of permit you may need based on the information entered into this calculator.
B15: 6) Later, you can use the blue tabs to calculate your actual emissions for the air emission inventory, a report due annually if you have an air permit.
B17: Color key
B18: Blue | C18: Enter information for your facility in the blue boxes.
B19: White | C19: Do not change the values or formulas in white boxes. White boxes contain intermediate calculations for determining emissions.
B20: Green | C20: Your emission totals are in green boxes. These are automatically calculated based on information entered in blue boxes.
B21: Yellow | C21: Permit and insignificant activity thresholds
B22: Orange | C22: Orange boxes are filled with standard values. You may change them if you have test results that provide data specific to your site.
B23: Blue Text | C23: Key information and tips.
B25: Assistance
B26: This calculator was created by the Minnesota Pollution Control Agency's (MPCA) Small Business Environmental Assistance Program (SBEAP).
B27: We provide free, confidential, environmental assistance to small businesses. For more information:
B28: Call: | C28: 651/282-6143 | E28: Email: | F28: smallbizhelp.pca@state.mn.us
C29: 800/657-3938
B31: Online at the MPCA website at: | E31: https://www.pca.state.mn.us/smallbizhelp
B33: For more information for grain elevators and feed mills, visit the MPCA website at:
B34: https://www.pca.state.mn.us/business-with-us/grain-elevators-feed-mills-and-fertilizer-mixing-plants

Sheet Federal standards
B1: =Instructions!F2 -> p-sbap5-28 • 6/6/23
B2: U.S. Environmental Protection Agency (EPA) new source performance standards (NSPS)
B4: Does the federal new source performance standard for grain elevators apply? | N4: Choose Y/N
B5: This standard applies to unloading stations, loading stations, grain dryers, and grain handling operations that: | N5: =IF($N$4="Yes","Because an NSPS applies to your operation, you need an air permit.",IF($N$4="No","Continue to the next question below.",IF($N$4="Choose Y/N"," "," "))) -> 
B6: 1) | C6: were constructed, modified, or reconstructed after August 3, 1978, and
B7: 2) | C7: are not located at animal food manufacturers, pet food manufacturers, cereal manufacturers, breweries, or livestock feedlots, and
B9: 3) | C9: have a permanent storage capacity of 2.5 million US bushels or more.
B10: or | N10: =IF($N$4="Yes","Continue to the next question",IF($N$4="No","",IF($N$4="Choose Y/N"," "))) -> 
B11: 1) | C11: were constructed, modified, or reconstructed after August 3, 1978, and
B12: 2) | C12: are located at a wheat flour mill, wet corn mill, dry corn mill (for human consumption), rice mill, or soybean oil extraction plant, and
B14: 3) | C14: have a permanent storage capacity of about 1 million US bushels or more.
B16: The full text of NSPS for Grain Elevators is available at: | H16: 40 CFR pt. 60, subp. DD
B18: What is included in construction, modification, and reconstruction?
B19: If you do an activity which counts as construction, modification, or reconstruction it may cause the grain elevator NSPS to apply to you or create the need for a permit amendment. Some examples of construction, modification and reconstruction are:
B21: · | C21: create, build, or install a new grain dryer or a grain dryer that increases grain handling capacity,
B22: · | C22: increase in permanent storage capacity that increases the hourly grain handling capacity, or
B23: · | C23: replace components that cost 50% of the full cost to construct a similar, new facility.
B25: The activities below do not count as modifications, as stated in the grain elevator NSPS:
B26: · | C26: add gravity loadout spouts to existing grain storage or transfer bins,
B27: · | C27: install automatic grain weighing scales,
B28: · | C28: replace motor and drive units in existing grain handling equipment, or
B29: · | C29: install permanent storage capacity without increasing hourly grain handling capacity.
B31: The full definitions of construction and modification are available at: | I31: 40 CFR § 60.2 | K31: and reconstruction at: | N31: 40 CFR § 60.15
B33: Does the federal regulation for feed mills apply to you? | N33: Choose Y/N
B34: "Regulations for Prepared Feeds Manufacturing" is a different type of federal rule, not an NSPS, that may affect you. | N34: =IF($N$33="Yes","Follow the requirements of the rule.",IF($N$33="No","Continue to the next question.",IF($N$33="Choose Y/N"," "," "))) -> 
B35: Although many feed mills are exempt from the federal NSPS for grain elevators, grain processing facilities and feed mills may be subject to the federal rule for "Prepared Feeds Manufacturing." This rule is independent of other permits and regulations. Whether or not this rule applies to your facility does not affect whether you need a permit, and likewise whether you need a permit does not affect whether this rule applies.
N38: =IF($N$33="Yes","Continue to the next question.",IF($N$33="No"," ",IF($N$33="Choose Y/N"," "))) -> 
C39: For information see EPA fact sheet (40 CFR pt. 63, subp. 7D):
C40: https://www.epa.gov/stationary-sources-air-pollution/prepared-feeds-manufacturing-national-emission-standards-hazardous
B42: Do other federal new source performance standards apply? | N42: Choose Y/N
B43: Even if the grain elevator NSPS does not apply to your facility, there are other NSPS that might apply depending on what other equipment or activities you have at your facility. | N43: =IF($N$42="Yes","Because an NSPS applies to your operation, you need an air permit.",IF($N$42="No","Continue to the next blue tab.",IF($N$42="Choose Y/N"," "," "))) -> 
C45: For example, if you have a generator, turbine, or an engine that is not on wheels, see the rules for internal combustion engines.
C47: More information is available on the MPCA website at: | H47: https://www.pca.state.mn.us/business-with-us/stationary-engines
C48: See a list of other NSPS that may apply to you on the MPCA website at: | J48: https://www.pca.state.mn.us/sites/default/files/aq-f1-gi09d.doc

Sheet MN bulk ag. rule
B1: =Instructions!F2 -> p-sbap5-28 • 6/6/23
B2: Minnesota bulk agricultural nuisance rule
B3: All grain and commodity facilities in Minnesota must comply with the bulk ag. nuisance rule
B4: The rule states:
B5: · | C5: Grain or commodity facilities may not operate or maintain a facility that creates a public nuisance, and
B6: · | C6: If the operation or maintenance of a facility creates a public nuisance, you are required to eliminate the nuisance.
B9: Nuisances and fugitive dust
B10: Complaints are commonly made about bees wings and dust from grain handling facilities and must be managed. If the grain elevator NSPS applies, you must still comply with the MPCA's nuisance and fugitive dust rules. If the grain elevator NSPS does not apply and you are required to comply with the bulk ag. rule instead, there are limits on the amount of dust and other solids that can be released into the air. See prohibited discharges.
B13: · | C13: Bulk ag. nuisance rule | F13: Minn. R. 7011.1010 | H13: · | I13: Bulk ag. prohibited discharges | L13: Minn. R. 7011.1005, subp. 3
B14: · | C14: Preventing particulate matter from becoming airborne (fugitive dust) | J14: Minn. R. 7011.0150
B17: Does the Minnesota bulk ag. rule apply to you? | N17: Choose Y/N
B18: Family farms are exempt from the MPCA’s bulk ag. rule, but the facility must meet the statutory definition: | M18: Minn. Stat. § 116B.02, subp. 5 and 6
B19: · | C19: "Family farm" is any farm owned by one or more persons who are related, with at least one owner living at or operating the farm.
B20: · | C20: "Family farm corporation" is a corporation founded for the purpose of farming and owning agricultural land. The majority of stockholders must be related, cannot be corporations, and at least one of the stockholders, as a person, must be living at or operating the farm.
B22: --> "Related" means the owners are all within the first three degrees of kindred which includes (1st) parents, children, siblings, (2nd) grandparents, grandchildren, uncle/aunt, (3rd) niece/nephew, great grandparents, great grandchildren.
B25: If you are not a family farm:
B26: The Bulk Ag. Rule applies to facilities where grains and commodities are unloaded, handled, cleaned, dried, stored, ground, or loaded.
B27: · | C27: "Grain" means corn, wheat, soybeans, sorghum, rice, rye, oats, barley, flax, or sunflower seeds.
B28: · | C28: "Commodity" means grain by-products, seed, beet pulp or pellets, and alfalfa meal or pellets.
B30: If you have both grain and commodity operations at the same facility, it is possible for:
B31: 1) | C31: the grain elevator NSPS to apply to your grain operations | I31: and | J31: the bulk ag. rule apply to your commodity operations.
B32: or 2) | C32: the grain and commodity operations to both need to follow only to the bulk ag. rule.
B34: Full text of the Bulk Agricultural Commodity Facilities rule is available at: | I34: Minn. R. 7011.1000 to 7011.1015
B36: Are emissions required to be controlled?
B37: When emission must be controlled, you can use the pollutant capture efficiency (for particulate matter (PM) and particulate matter less than 10 micrometers (PM-10)) in your actual emission calculations. See more information in each tab in the section 'What you need to know about the calculations' #3. But, first, answer the questions below to see if you are required to control emissions.
B41: 1) | C41: Which of the following is true for your facility?
D42: Choose one
B44: 2) | C44: What is your annual throughput* in tons?"
B45: *Throughput = (tons of commodities received + tons of commodities shipped) / 2 based on the average of the last 3 years
D46: Choose one
B48: 3) | C48: When was the facility constructed, modified, or reconstructed?
C49: *See definitions at Minn. R. 7005.0100 | G49: https://www.revisor.mn.gov/rules/7005.0100/
D50: Choose one
B52: Control is not required. | E52: Review the prohibited discharges and the nuisance rule. Continue to the next tab to calculate air emissions.
B53: Control is required. See MPCA Control Equipment Rule. | H53: Minn. R. 7011.0060 to 7011.0080 | K53: Continue to the next tab to calculate air emissions.
B56: Opacity standards
B57: According to your entries above, you are required to control emissions. This means you must limit the opacity (amount that light is obscured by dusts and particles) to meet the following standards.
B59: 1) Fugitive emissions
C60: Opacity | D60: Process
C61: 0.05 | D61: Truck unloading station, railcar loading and unloading station, or grain handling
C62: 0.1 | D62: Truck loading station
C63: 0.2 | D63: Ship or barge loading or unloading station. During trimming or topping off, when normal loading procedures cannot be used, no opacity standard applies.
B65: 2) If using control equipment, the collection efficiency must be at least 80% by weight and not discharge in excess of 10% opacity.
L66: Minn. R. 7011.1005
B68: Temporary storage piles
B69: There is no performance standard for portable equipment and fugitive emissions directly associated with a temporary storage facility when you:
B70: 1) | C70: are required to control emissions under the Bulk Ag. Rule, AND
B71: 2) | C71: have temporary grain storage piles that meet the following conditions:
C72: · | D72: have an asphalt, concrete, or comparable base with rigid, self-supporting sidewalls, and
C73: · | D73: provide adequate aeration and acceptable covering.
B74: The portable equipment cannot be fixed in any one spot and can be moved. Portable equipment includes portable receiving pits, portable augers and conveyors, and portable reclaim equipment directly associated with the temporary storage facility.
L76: Minn. Statute 116.07, subd. 2c.

Sheet Grain elevator potential
B1: =Instructions!F2 -> p-sbap5-28 • 6/6/23
B2: Air emissions for grain elevators - Potential emissions
B3: Important: If you are applying for a state or federal individual air permit, do not use this tab for your application. Individual permit applications must calculate potential emissions for each
B4: emission unit. Guidance is available at MPCA's air permit emission calculation page: | G4: https://www.pca.state.mn.us/business-with-us/grain-elevators-and-feed-mills-emission-calculations
B5: Calculate your facility's maximum capacity.
B6: There are two classifications of elevators.1 The type of elevator you are will determine how to calculate the facility's maximum capacity.
C7: Country elevator: receives more than 50 percent of its grain from farmers in the immediate vicinity during the harvest season.
H8: What type of elevator is your facility?
B9: or | C9: Terminal elevator: receives grain primarily from other elevators. | H9: Choose one
C11: =IF(H9="Country elevator","Maximum capacity is the largest amount of grain that arrived at or was handled by your facility in the past five years increased by 20% to allow for annual variations.",IF(H9="Terminal Elevator","Maximum capacity is the most amount of grain that could possibly be processed assuming an unlimited supply is available.",IF(H9="Select one"," "))) -> FALSE | G11: =IF(H9="Select One","",IF(H9="terminal elevator","Maximum capacity (tons per year)",IF(H9="country elevator","Maximum capacity (tons per year)"))) -> FALSE | J11: =IF(H9="Country elevator","Year 1",IF(H9="Terminal Elevator"," ",IF(H9="Select one"," "))) -> FALSE | L11: ton per year
G12: 0 | J12: =IF(H9="Country elevator","Year 2",IF(H9="Terminal Elevator"," ",IF(H9="Select one"," "))) -> FALSE | L12: ton per year
G13: =MAX(K11:K15)*1.2 -> 0 | J13: =IF(H9="Country elevator","Year 3",IF(H9="Terminal Elevator"," ",IF(H9="Select one"," "))) -> FALSE | L13: ton per year
J14: =IF(H9="Country elevator","Year 4",IF(H9="Terminal Elevator"," ",IF(H9="Select one"," "))) -> FALSE | L14: ton per year
F15: -------Enter amount of grain for the previous 5 years---------> | J15: =IF(H9="Country elevator","Year 5",IF(H9="Terminal Elevator"," ",IF(H9="Select one"," "))) -> FALSE | L15: ton per year
B18: Facility information for emission calculations
B19: Max. Capacity (ton/year) | D19: =IF(G12=0,G13,IF(G13=0,G12,IF(SUM(G12,G13)=0,0,IF(AND(G12>0,G13>0),"Choose One Elevator Type")))) -> 0 | F19: Max. capacity will be entered automatically from above
B21: Do you have a traditional facility with a headhouse? | F21: Choose Y/N
B23: Grain received by: | D23: Truck straight | E23: Choose Y/N | H23: Grain loaded out by: | I23: Truck unspecified | J23: Choose Y/N
D24: Truck hopper | E24: Choose Y/N
D25: Rail | E25: Choose Y/N | I25: Rail | J25: Choose Y/N
D26: Barge | E26: Choose Y/N | F26: --> If yes, type: | I26: Barge | J26: Choose Y/N
D27: Ship | E27: Choose Y/N | I27: Ship | J27: Choose Y/N
D29: Do you clean the grain? | E29: Choose Y/N | F29: -----> | I29: If yes, what is the total grain cleaning capacity? | K29: tons per hour
D31: Do you have 1 or more grain dryers? | E31: Choose Y/N | F31: ----> If yes, what type(s)? | I31: Total capacity (ton per hour) | K31: Drying Capacity
F32: Rack | G32: Choose Y/N | H32: -----> | K32: =I34+I33+I32 -> 0 | L32: ton per hour
F33: Rack with self-cleaning screen (<50 mesh) | G33: Choose Y/N | H33: -----> | K33: =K32*8760 -> 0 | L33: ton per year
F34: Column | G34: Choose Y/N | H34: ----->
B37: What you need to know about the calculations:
B38: 1) | C38: In the table below, potential emissions are calculated based on your entries above. If you receive or ship grain multiple ways (truck, rail, ship, and/or barge), the highest emitting method is used to calculate your potential emissions. You can account for actual quantities received or shipped when you calculate actual emissions on the next tab.
B41: 2) | C41: The emissions from the headhouse and handling are calculated each time the grain is elevated. In potential emission calculations, as shown in the table below, it is assumed that the maximum capacity of grain is received, then elevated for storage, then elevated again for shipping. In addition, the grain is assumed to be elevated again after cleaning and after drying if those activities take place at the facility. Emissions from storage bin vents occur when grain is put into storage bins or silos after it is received, after cleaning, and after drying. This is the method of calculation specified by EPA in AP-42, section 9.9.1.3.
B45: 3) | C45: Emission control capture efficiency cannot be used when calculating your potential emissions. Therefore, the control efficiency is set at zero, or no control. You can use control efficiencies on the actual emissions tab.
B48: Grain elevator potential emissions | I48: Source unless otherwise noted: EPA AP-42 Chapter 9.9.1
B49: a | D49: b | E49: c | F49: d | G49: e | H49: f | I49: g | J49: h | K49: h | L49: i
D50: Maximum Capacity | E50: PM Control Efficiency | F50: PM Emission Factor | G50: PM Emissions | H50: PM10 Control Efficiency | I50: PM10 Emission Factor | J50: PM10 Emissions | K50: PM2.5 Emission Factor | L50: PM2.5 Emissions
B51: Activity
D52: (tons/year) | E52: (% control) | F52: (lb/ton) | G52: (tons/year) | H52: (% control) | I52: (lb/ton) | J52: (ton/year) | K52: (lb/ton) | L52: (ton/year)
D53: =D19 -> 0 | G53: b*d/2000 | J53: b*g/2000 | L53: b*h*(1-f)/2000
B54: Receiving | C54: Truck straight | D54: =IF(E23="yes",D53,0) -> 0 | E54: ='Grain elevator actual'!E84 -> 0 | F54: 0.18 | G54: =D54*F54/2000 -> 0 | H54: 0 | I54: 0.059 | J54: =D54*I54/2000 -> 0 | K54: 0.01 | L54: =D54*K54/2000 -> 0
C55: Truck hopper | D55: =IF(D54=D53,0,IF(D59=D53,0,IF(D58=D53,0,IF(E24="yes",D53,0)))) -> 0 | F55: 0.035 | G55: 0 | I55: 0.0078 | J55: 0 | K55: 0.0013 | L55: 0
C56: Rail | D56: =IF(D54=D53,0,IF(D59=D53,0,IF(D58=D53,0,IF(D55=D53,0,IF(E25="yes",D53,0))))) -> 0 | F56: 0.032 | G56: 0 | I56: 0.0078 | J56: 0 | K56: 0.0013 | L56: 0
C57: Barge unload cont. | D57: =IF(D54=D53,0,IF(D59=D53,0,IF(D58=D53,0,IF(D56=D53,0,IF(D55=D53,0,IF(G26="continuous unloader",D53,0)))))) -> 0 | F57: 0.029 | G57: 0 | I57: 0.0073 | J57: 0 | K57: 0.0019 | L57: 0
C58: Barge marine leg | D58: =IF(D54=D53,0,IF(D59=D53,0,IF(G26="marine leg",D53,0))) -> 0 | F58: 0.15 | G58: 0 | I58: 0.038 | J58: 0 | K58: 0.005 | L58: 0
C59: Ship | D59: =IF(D54=D53,0,IF(E27="yes",D53,0)) -> 0 | F59: 0.15 | G59: 0 | I59: 0.038 | J59: 0 | K59: 0.005 | L59: 0
B60: Loadout / Shipping | C60: Truck unspecified | D60: =IF(J23="yes",D53,0) -> 0 | F60: 0.086 | G60: 0 | I60: 0.029 | J60: 0 | K60: 0.0049 | L60: 0
C61: Railcar | D61: =IF(D60=D53,0,IF(D63=D53,0,IF(J25="yes",D53,0))) -> 0 | F61: 0.027 | G61: 0 | I61: 0.0022 | J61: 0 | K61: 0.00037 | L61: 0
C62: Barge | D62: =IF(D60=D53,0,IF(D63=D53,0,IF(D61=D53,0,IF(J26="yes",D53,0)))) -> 0 | F62: 0.016 | G62: 0 | I62: 0.004 | J62: 0 | K62: 0.00055 | L62: 0
C63: Ship | D63: =IF(D60=D53,0,IF(J27="yes",D53,0)) -> 0 | F63: 0.048 | G63: 0 | I63: 0.012 | J63: 0 | K63: 0.0022 | L63: 0
B64: Headhouse & Handling2 | D64: =IF($F$21="Choose Y/N",0,IF($F$21="Yes",((D53*2)+D65+D67+D68+D69),IF($F$21="No",0))) -> 0 | F64: 0.061 | G64: 0 | I64: 0.034 | J64: 0 | K64: 0.0058 | L64: 0
B65: Grain Cleaning3 | D65: =IF(E29="yes",IF((J29*8760)<D19,(J29*8760),D53),0) -> 0 | F65: =0.075/2*10 -> 0.375 | G65: 0 | I65: =0.019/2*10 -> 0.095 | J65: 0 | K65: =0.0032/2*10 -> 0.016 | L65: 0
B66: Storage Bin (vent) | D66: =D53+D65+D67+D68+D69 -> 0 | F66: 0.025 | G66: 0 | I66: 0.0063 | J66: 0 | K66: 0.0011 | L66: 0
B67: Grain Drying | C67: Rack | D67: =IF(G32="yes",IF((I32*8760)<D53,(I32*8760),D53),0) -> 0 | F67: 3 | G67: 0 | I67: 0.75 | J67: 0 | K67: 0.13 | L67: 0
C68: Rack (<50 mesh) | D68: =IF(G33="no",0,IF((I33*8760)<(D53-D67),(I33*8760),(D53-D67))) -> 0 | F68: 0.47 | G68: 0 | I68: 0.12 | J68: 0 | K68: 0.02 | L68: 0
C69: Column | D69: =IF(G34="no",0,IF((I34*8760)<(D53-D67-D68),(I34*8760),(D53-D67-D68))) -> 0 | F69: 0.22 | G69: 0 | I69: 0.055 | J69: 0 | K69: 0.0094 | L69: 0
B70: Total tons of emissions (excluding dryer combustion) | G70: =SUM(G54:G69) -> 0 | J70: =SUM(J54:J69) -> 0 | L70: =SUM(L54:L69) -> 0
B71: 1 EPA memo defining country elevator and terminal elevator on EPA website at | G71: https://www.epa.gov/sites/production/files/2015-08/documents/grainfnl.pdf
B72: 2 Legs, conveyors, belts, distributor, scale, enclosed cleaners, etc.
B73: 3 Internal vibrating; emission factor is an average of back-calculated values from AP-42 Table 9.9.1-1 (4/03), which provides a cyclone-controlled emission factor. A cyclone was assumed to be 80% efficient; from Minn. R. 7011.0070.

Sheet Grain elevator actual
L1: =Instructions!F2 -> p-sbap5-28 • 6/6/23
B2: Air emissions for grain elevators - Actual emissions
B3: What you need to know about the calculations:
B4: 1) | C4: In the table below, enter in the blue cells the actual quantities of grain received, loaded out, cleaned, and dried during the past 12 months.
B5: 2) | C5: The emissions from the headhouse and handling are calculated each time the grain is elevated. In potential emission calculations, as shown in the table below, it is assumed that the maximum capacity of grain is received, then elevated for storage, then elevated again for shipping. In addition, the grain is assumed to be elevated again after cleaning and after drying, if those activities take place at the facility. Emissions from storage bin vents occur when grain is put into storage bins or silos - after it is received, after cleaning, and after drying. This is the method of calculation prescribed by EPA in AP-42, section 9.9.1.3.
B9: 3) | C9: Enter the appropriate particulate matter (PM) control efficiencies for PM and PM10. Control efficiency is the percent of pollutant captured by the control equipment, such as a cyclone or filters. You may assume 0% control efficiency. Otherwise, the percent control for the different types of control equipment is listed in Minn. R. 7011.0070 and is based on whether emissions are captured through a total enclosure, a certified hood, or an uncertified hood. See the requirements for certified hoods (Minn. R. 7011.0072) and for requirements for maintenance, monitoring, and recordkeeping for control equipment (Minn. R. 7011.0075 and 0080).1, 2, 3, 4
B14: Grain elevator actual emissions | I14: Source unless otherwise noted: EPA AP-42 Chapter 9.9.1
B15: a | D15: b | E15: c | F15: d | G15: e | H15: f | I15: g | J15: h | K15: h | L15: i
B16: Activity | D16: Actual Throughput | E16: PM Control Efficiency1 | F16: PM Emission Factor | G16: PM Emissions | H16: PM10 Control Efficiency1 | I16: PM10 Emission Factor | J16: PM10 Emissions | K16: PM2.5 Emission Factor | L16: PM2.5 Emissions
D18: (tons/year) | E18: (% control) | F18: (lb/ton) | G18: (tons/year) | H18: (% control) | I18: (lb/ton) | J18: (ton/year) | K18: (lb/ton) | L18: (ton/year)
G19: b*d*(1-c)/2000 | J19: b*g*(1-f)/2000 | L19: b*h*(1-f)/2000
B20: Receiving | C20: Truck straight | E20: 0 | F20: 0.18 | G20: =D20*F20*(1-E20)/2000 -> 0 | H20: 0 | I20: 0.059 | J20: =D20*I20*(1-H20)/2000 -> 0 | K20: 0.01 | L20: =D20*K20*(1-H20)/2000 -> 0
C21: Truck hopper | E21: 0 | F21: 0.035 | G21: 0 | H21: 0 | I21: 0.0078 | J21: 0 | K21: 0.0013 | L21: =D21*K21*(1-H21)/2000 -> 0
C22: Rail | E22: ='Grain elevator actual'!E57 -> 0 | F22: 0.032 | G22: 0 | H22: 0 | I22: 0.0078 | J22: 0 | K22: 0.0013 | L22: =D22*K22*(1-H22)/2000 -> 0
C23: Barge unload cont. | E23: ='Grain elevator actual'!E58 -> 0 | F23: 0.029 | G23: 0 | H23: 0 | I23: 0.0073 | J23: 0 | K23: 0.0019 | L23: 0
C24: Barge marine leg | E24: ='Grain elevator actual'!E59 -> 0 | F24: 0.15 | G24: 0 | H24: 0 | I24: 0.038 | J24: 0 | K24: 0.005 | L24: 0
C25: Ship | E25: ='Grain elevator actual'!E60 -> 0 | F25: 0.15 | G25: 0 | H25: 0 | I25: 0.038 | J25: 0 | K25: 0.005 | L25: 0
B26: Loadout / Shipping | C26: Truck unspecified | E26: ='Grain elevator actual'!E61 -> 0 | F26: 0.086 | G26: 0 | H26: 0 | I26: 0.029 | J26: 0 | K26: 0.0049 | L26: 0
C27: Railcar | E27: ='Grain elevator actual'!E62 -> 0 | F27: 0.027 | G27: 0 | H27: 0 | I27: 0.0022 | J27: 0 | K27: 0.00037 | L27: 0
C28: Barge | E28: ='Grain elevator actual'!E63 -> 0 | F28: 0.016 | G28: 0 | H28: 0 | I28: 0.004 | J28: 0 | K28: 0.00055 | L28: 0
C29: Ship | E29: ='Grain elevator actual'!E64 -> 0 | F29: 0.048 | G29: 0 | H29: 0 | I29: 0.012 | J29: 0 | K29: 0.0022 | L29: 0
B30: Headhouse & Handling5 | E30: 0 | F30: 0.061 | G30: 0 | H30: 0 | I30: 0.034 | J30: 0 | K30: 0.0058 | L30: 0
B31: Grain Cleaning6 | E31: ='Grain elevator actual'!E66 -> 0 | F31: =0.075/2*10 -> 0.375 | G31: 0 | H31: 0 | I31: =0.019/2*10 -> 0.095 | J31: 0 | K31: =0.0032/2*10 -> 0.016 | L31: 0
B32: Storage Bin (vent) | D32: =D20+D21+D22+D23+D24+D25+D31+D33+D34+D35 -> 0 | E32: ='Grain elevator actual'!E67 -> 0 | F32: 0.025 | G32: =D32*F32*(1-E32)/2000 -> 0 | H32: 0 | I32: 0.0063 | J32: 0 | K32: 0.0011 | L32: 0
B33: Grain Drying | C33: Rack | E33: ='Grain elevator actual'!E68 -> 0 | F33: 3 | G33: =D33*F33*(1-E33)/2000 -> 0 | H33: 0 | I33: 0.75 | J33: 0 | K33: 0.13 | L33: 0
C34: Rack (<50 mesh) | E34: ='Grain elevator actual'!E69 -> 0 | F34: 0.47 | G34: =D34*F34*(1-E34)/2000 -> 0 | H34: 0 | I34: 0.12 | J34: 0 | K34: 0.02 | L34: 0
C35: Column | E35: ='Grain elevator actual'!E70 -> 0 | F35: 0.22 | G35: =D35*F35*(1-E35)/2000 -> 0 | H35: 0 | I35: 0.055 | J35: 0 | K35: 0.0094 | L35: 0
B36: Total tons emissions (excluding combustion from dryers) | G36: =SUM(G20:G35) -> 0 | J36: =SUM(J20:J35) -> 0 | L36: =SUM(L20:L35) -> 0
B37: Below information can be found on the Minnesota Revisors website:
B38: 1 Control efficiencies are listed in Minn. R. 7011.0070. | G38: https://www.revisor.mn.gov/rules/?id=7011.0070
B39: 2 Certified hood requirements are listed in Minn. R. 7011.0072 | G39: https://www.revisor.mn.gov/rules?id=7011.0072
B40: 3 Requirements for control equipment are listed in Minn. R. 7011.0075 | G40: https://www.revisor.mn.gov/rules?id=7011.0075
B41: 4 Monitoring and recordkeeping for controls is in Minn. R. 7011.0080 | G41: https://www.revisor.mn.gov/rules?id=7011.0080
B42: 5 Legs, conveyors, belts, distributor, scale, enclosed cleaners, etc. Throughput is the sum of all shipping, receiving, cleaning, and drying throughputs.
B43: 6 Internal Vibrating; Emission factor is an average of back-calculated values from AP-42 Table 9.9.1-1 (4/03), which provides a cyclone-controlled emission factor. A cyclone was assumed to be 80% efficient; from Minn. R. 7011.0070.

Sheet Feed mill potential
L1: =Instructions!F2 -> p-sbap5-28 • 6/6/23
B2: Air emissions for feed mills - Potential emissions
B3: Important: If you are applying for a state or federal individual air permit, do not use this tab for your application. Individual permit applications must calculate potential emissions for each
B4: emission unit. Guidance is available at MPCA's air permit emission calculation page: | G4: https://www.pca.state.mn.us/business-with-us/grain-elevators-and-feed-mills-emission-calculations
B5: Facility information for emission calculations
B6: Facility name: | F6: For grain processing facilities, max. capacity is the maximum amount of grain you could possibly process in a year assuming an unlimited supply is available.
B7: Max. capacity: | E7: tons/year
B9: Do you have a traditional facility with a headhouse? | F9: Choose Y/N
B11: Do you have any milling equipment? | E11: Choose Y/N | G11: Total capacity (ton per hour) | I11: Total milling capacity
B12: If yes, what type(s)? | D12: Hammermill | E12: Choose Y/N | F12: -----> | I12: =G14+G13+G12 -> 0 | J12: ton per hour
D13: Flaker | E13: Choose Y/N | F13: -----> | I13: =I12*8760 -> 0 | J13: ton per year
D14: Cracker | E14: Choose Y/N | F14: ----->
B16: Do you do pellet cooling? | E16: Choose Y/N | G16: Do you clean the grain at some point? | K16: Choose Y/N
B17: If yes, what is your pellet cooling capacity? | F17: (ton per hour) | G17: If yes, what is the total grain cleaning capacity? | L17: ton per hour
B19: Do you have 1 or more grain dryers? | E19: Choose Y/N | G19: Total capacity (ton per hour) | I19: Drying Capacity
B20: If yes, what type(s)? | D20: Rack dryer | E20: Choose Y/N | F20: -----> | I20: =G22+G21+G20 -> 0 | J20: ton per hour
D21: Rack dryer with self cleaning screen (<50 mesh) | E21: Choose Y/N | F21: -----> | I21: =I20*8760 -> 0 | J21: ton per year
D22: Column dryer | E22: Choose Y/N | F22: ----->
B25: What you need to know about the calculations:
B26: 1) | C26: In the table below, potential emissions are calculated based on your entries above. You can account for actual quantities processed when you calculate actual emissions on the next tab.
B28: 2) | C28: The emissions from the headhouse and handling are calculated each time the grain is elevated. In potential emission calculations, as shown in the table below, it is assumed that the maximum capacity of grain is received, then elevated for storage, then elevated again for shipping. In addition, the grain is assumed to be elevated again after cleaning and after drying, if those activities take place at the facility. Emissions from storage bin vents occur when grain is put into storage bins or silos after it is received, after cleaning, and after drying. This is the method of calculation prescribed by EPA in AP-42, section 9.9.1.3.
B32: 3) | C32: Emissions control capture efficiency cannot be used to calculate your potential emissions. Therefore the control efficiency is set at zero, or no control. You can enter control efficiencies on the actual emissions tab.
B35: Feed mill potential emissions | I35: Source unless otherwise noted: EPA AP-42 Chapter 9.9.1
B36: a | D36: b | E36: c | F36: d | G36: e | H36: f | I36: g | J36: h | K36: h | L36: i
B37: Activity | D37: Maximum Capacity | E37: PM Control Efficiency | F37: PM Emission Factor | G37: PM Emissions | H37: PM10 Control Efficiency | I37: PM10 Emission Factor | J37: PM10 Emissions | K37: PM2.5 Emission Factor | L37: PM2.5 Emissions
D39: (tons/year) | E39: (% control) | F39: (lb/ton) | G39: (tons/year) | H39: (% control) | I39: (lb/ton) | J39: (ton/year) | K39: (lb/ton) | L39: (ton/year)
D40: =$C$7 -> 0 | G40: b*d/2000 | J40: b*g/2000 | L40: b*h/2000
B41: Grain Receiving | D41: =$D$40 -> 0 | E41: 0 | F41: 0.017 | G41: =D41*F41/2000 -> 0 | H41: 0 | I41: 0.0025 | J41: =D41*I41/2000 -> 0 | K41: =I41 -> 0.0025 | L41: =D41*K41/2000 -> 0
B42: Grain Loadout | D42: =$D$41 -> 0 | F42: 0.0033 | G42: =D42*F42/2000 -> 0 | I42: 0.0008 | J42: =D42*I42/2000 -> 0 | K42: 0.0008 | L42: =D42*K42/2000 -> 0
B43: Milling | C43: Hammermill1 | D43: =IF(E12="yes",IF(($G$12*8760)<$D$40,($G$12*8760),$D$40),0) -> 0 | F43: =AVERAGE((0.067/2*10),(0.012*100)) -> 0.7675 | G43: 0 | I43: =F43*0.5 -> 0.38375 | J43: 0 | K43: 0.38375 | L43: 0
C44: Flaker2 | D44: =IF($E$13="yes",IF(($G$13*8760)<$D$40,($G$13*8760),$D$40),0) -> 0 | F44: =0.15/2*10 -> 0.75 | G44: 0 | I44: =F44*0.5 -> 0.375 | J44: 0 | K44: 0.375 | L44: 0
C45: Cracker2 | D45: =IF($E$14="yes",IF(($G$14*8760)<$D$40,($G$14*8760),$D$40),0) -> 0 | F45: =0.024/2*10 -> 0.12 | G45: 0 | I45: =F45*0.5 -> 0.06 | J45: 0 | K45: 0.06 | L45: 0
B46: Pellet Cooler3 | D46: =IF($E$16="yes",IF(($E$17*8760)<$D$40,($E$17*8760),$D$40),0) -> 0 | F46: =AVERAGE((0.36/2*10),(0.15*10)) -> 1.65 | G46: 0 | I46: =F46*0.5 -> 0.825 | J46: 0 | K46: 0.825 | L46: 0
B47: Headhouse & Grain Handling4 | D47: =IF($F$9="Choose Y/N",0,IF($F$9="Yes",($D$41+D$42+D$48+D$50+D$51+D$52+D$46+D$43),IF($F$9="No",0))) -> 0 | F47: 0.061 | G47: 0 | I47: 0.034 | J47: 0 | K47: 0.0058 | L47: 0
B48: Grain Cleaning (internal vibrating5) | D48: =IF($K$16="yes",IF(($K$17*8760)<$D$40,($K$17*8760),$D$40),0) -> 0 | F48: 0.375 | G48: 0 | I48: 0.095 | J48: 0 | K48: =0.0032/2*10 -> 0.016 | L48: 0
B49: Storage Bin (vent) | D49: =D$41+D44+D45+D$48+D$50+D$51+D$52+D$43 -> 0 | F49: 0.025 | G49: 0 | I49: 0.0063 | J49: 0 | K49: 0.0011 | L49: 0
B50: Grain Drying | C50: Rack | D50: =IF(E$20="yes",IF((G$20*8760)<D$40,(G$20*8760),D$40),0) -> 0 | F50: 3 | G50: 0 | I50: 0.75 | J50: 0 | K50: 0.13 | L50: 0
C51: Rack (<50mesh) | D51: =IF(E21="no",0,IF((G21*8760)<(D40-D50),(G21*8760),(D40-D50))) -> 0 | F51: 0.47 | G51: 0 | I51: 0.12 | J51: 0 | K51: 0.02 | L51: 0
C52: Column | D52: =IF(E22="no",0,IF((G22*8760)<(D40-D50-D51),(G22*8760),(D40-D50-D51))) -> 0 | F52: 0.22 | G52: 0 | I52: 0.055 | J52: 0 | K52: 0.0094 | L52: 0
B53: Total tons emissions (excluding combustion from dryers) | G53: =SUM(G41:G52) -> 0 | J53: =SUM(J41:J52) -> 0 | L53: =SUM(L41:L52) -> 0
B54: 1 Emission factor for hammermill is an average of back-calculated values from AP-42 Table 9.9.1-2, which provides a cyclone-controlled emission factor and a baghouse-controlled emission factor. A cyclone was assumed to be 80% efficient, and a baghouse was assumed to be 99% efficient; from Minn. R. 7011.0070.
B56: 2 Emission factor is an average of back-calculated values from AP-42 Table 9.9.1-1, which provides a cyclone-controlled emission factor. A cyclone was assumed to be 80% efficient; from Minn. R. 7011.0070.
B58: 3 Emission factor is an average of back-calculated values from AP-42 Table 9.9.1-2, which provides a cyclone-controlled emission factor and a high-efficiency cyclone-controlled emission factor. A cyclone was assumed to be 80% efficient, a high-efficiency cyclone was assumed to be 90% efficient; from Minn. R. 7011.0070.
B60: 4 Legs, conveyors, belts, distributor, scale, enclosed cleaners, etc.
B61: 5 Internal Vibrating; Emission factor is an average of back-calculated values from AP-42 Table 9.9.1-1 (4/03), which provides a cyclone-controlled emission factor. A cyclone was assumed to be 80% efficient; from Minn. R. 7011.0070.

Sheet Feed mill actual
B1: =Instructions!F2 -> p-sbap5-28 • 6/6/23
B2: Air emissions for feed mills - Actual emissions
B3: What you need to know about the calculations:
B4: 1) | C4: In the table below, enter in the blue cells the actual quantities of product received, loaded out, milled, cleaned, and dried during the past 12 months.
B5: 2) | C5: The emissions from the headhouse and handling are calculated each time the grain is elevated. In potential emission calculations, as shown in the table below, it is assumed that the maximum capacity of grain is received, then elevated for storage, then elevated again for shipping. In addition, the grain is assumed to be elevated again after cleaning and after drying, if those activities take place at the facility. Emissions from storage bin vents occur when grain is put into storage bins or silos after it is received, after cleaning, and after drying. This is the method of calculation specified by EPA in AP-42, section 9.9.1.3.
B9: 3) | C9: Enter the appropriate particulate matter (PM) control efficiencies for PM and PM10. Control efficiency is the percent of pollutant captured by the control equipment, such as a cyclone or filters. You may assume 0% control. Otherwise, the percent control for the different types of control equipment is listed in Minn. R. 7011.0070 and is based on whether emissions are captured through a total enclosure, a certified hood, or an uncertified hood. See the requirements for certified hoods (Minn. R. 7011.0072) and for requirements for maintenance, monitoring, and recordkeeping for control equipment (Minn. R. 7011.0075 and 0080).1, 2, 3, 4
B14: Feed mill actual emissions | I14: Source unless otherwise noted: EPA AP-42 Chapter 9.9.1
B15: a | D15: b | E15: c | F15: d | G15: e | H15: f | I15: g | J15: h | K15: h | L15: i
B16: Activity | D16: Maximum Capacity | E16: PM Control Efficiency1 | F16: PM Emission Factor | G16: PM Emissions | H16: PM10 Control Efficiency1 | I16: PM10 Emission Factor | J16: PM10 Emissions | K16: PM2.5 Emission Factor | L16: PM2.5 Emissions
D18: (tons/year) | E18: (% control) | F18: (lb/ton) | G18: (tons/year) | H18: (% control) | I18: (lb/ton) | J18: (ton/year) | K18: (lb/ton) | L18: (ton/year)
G19: b*d*(1-c)/2000 | J19: b*g*(1-f)/2000 | L19: b*h*(1-f)/2000
B20: Grain Receiving | E20: 0 | F20: 0.017 | G20: =D20*F20*(1-E20)/2000 -> 0 | H20: 0 | I20: 0.0025 | J20: =D20*I20*(1-H20)/2000 -> 0 | K20: =I20 -> 0.0025 | L20: =D20*K20*(1-H20)/2000 -> 0
B21: Grain Loadout | E21: 0 | F21: 0.0033 | G21: 0 | H21: 0 | I21: 0.0008 | J21: 0 | K21: 0.0008 | L21: =D21*K21*(1-H21)/2000 -> 0
B22: Milling | C22: Hammermill5 | E22: 0 | F22: =AVERAGE((0.067/2*10),(0.012*100)) -> 0.7675 | G22: 0 | H22: 0 | I22: =F22*0.5 -> 0.38375 | J22: 0 | K22: 0.38375 | L22: 0
C23: Flaker6 | E23: 0 | F23: =0.15/2*10 -> 0.75 | G23: 0 | H23: 0 | I23: =F23*0.5 -> 0.375 | J23: 0 | K23: 0.375 | L23: 0
C24: Cracker6 | E24: 0 | F24: =0.024/2*10 -> 0.12 | G24: 0 | H24: 0 | I24: =F24*0.5 -> 0.06 | J24: 0 | K24: 0.06 | L24: 0
B25: Pellet Cooler7 | E25: 0 | F25: =AVERAGE((0.36/2*10),(0.15*10)) -> 1.65 | G25: 0 | H25: 0 | I25: =F25*0.5 -> 0.825 | J25: 0 | K25: 0.825 | L25: 0
B26: Headhouse & Grain Handling8 | E26: 0 | F26: 0.061 | G26: 0 | H26: 0 | I26: 0.034 | J26: 0 | K26: 0.0058 | L26: 0
B27: Grain Cleaning (internal vibrating9) | E27: 0 | F27: 0.375 | G27: 0 | H27: 0 | I27: 0.095 | J27: 0 | K27: =0.0032/2*10 -> 0.016 | L27: 0
B28: Storage Bin (vent) | D28: =D20+D22+D23+D24+D27+D30+D29+D31 -> 0 | E28: 0 | F28: 0.025 | G28: =D28*F28*(1-E28)/2000 -> 0 | H28: 0 | I28: 0.0063 | J28: =D28*I28*(1-H28)/2000 -> 0 | K28: 0.0011 | L28: 0
B29: Grain Drying | C29: Rack | E29: 0 | F29: 3 | G29: 0 | H29: 0 | I29: 0.75 | J29: 0 | K29: 0.13 | L29: 0
C30: Rack (<50mesh) | E30: 0 | F30: 0.47 | G30: 0 | H30: 0 | I30: 0.12 | J30: 0 | K30: 0.02 | L30: 0
C31: Column | E31: 0 | F31: 0.22 | G31: 0 | H31: 0 | I31: 0.055 | J31: 0 | K31: 0.0094 | L31: =D31*K31*(1-H31)/2000 -> 0
B32: Total Emissions (excluding combustion from dryers, if applicable) | G32: =SUM(G20:G31) -> 0 | J32: =SUM(J20:J31) -> 0 | L32: =SUM(L20:L31) -> 0
B33: Below information can be found on the Minnesota Revisors website:
B34: 1 Control efficiencies are listed in Minn. R. 7011.0070. | G34: https://www.revisor.mn.gov/rules/?id=7011.0070
B35: 2 Certified hood requirements are listed in Minn. R. 7011.0072 | G35: https://www.revisor.mn.gov/rules?id=7011.0072
B36: 3 Requirements for control equipment are listed in Minn. R. 7011.0075 | G36: https://www.revisor.mn.gov/rules?id=7011.0075
B37: 4 Monitoring and recordkeeping for controls is in Minn. R. 7011.0080 | G37: https://www.revisor.mn.gov/rules?id=7011.0080
B38: 5 Emission factor for hammermill is an average of back-calculated values from AP-42 Table 9.9.1-2, which provides a cyclone-controlled emission factor and a baghouse-controlled emission factor. A cyclone was assumed to be 80% efficient, and a baghouse was assumed to be 99% efficient; from Minn. R. 7011.0070.
B40: 6 Emission factor is an average of back-calculated values from AP-42 Table 9.9.1-1, which provides a cyclone-controlled emission factor. A cyclone was assumed to be 80% efficient; from Minn. R. 7011.0070.
B42: 7 Emission factor is an average of back-calculated values from AP-42 Table 9.9.1-2, which provides a cyclone-controlled emission factor and a high-efficiency cyclone-controlled emission factor. A cyclone was assumed to be 80% efficient, a high-efficiency cyclone was assumed to be 90% efficient; from Minn. R. 7011.0070.
B44: 8 Legs, conveyors, belts, distributor, scale, enclosed cleaners, etc.
B45: 9 Internal Vibrating; Emission factor is an average of back-calculated values from AP-42 Table 9.9.1-1 (4/03), which provides a cyclone-controlled emission factor. A cyclone was assumed to be 80% efficient; from Minn. R. 7011.0070.

Sheet Natural gas dryer
B1: =Instructions!F2 -> p-sbap5-28 • 6/6/23
B2: Air emissions from natural gas grain dryers | M2: Tip: How to use this calculator
B3: Natural gas combustion (less than 100 million Btu per hour) | M3: If you have… | O3: For potential emissions | Q3: For actual emissions
B5: If you have a boiler with a rating of more than 100 million Btu per hour, different emission factors must be used (see EPA AP-42 Chapter 1.4). | M5: One process/heating unit | O5: Enter maximum rated heat input | Q5: Enter amount of fuel burned or actual operation hours
B7: What is the total maximum rated heat input for your natural gas units? | G7: 0 | H7: Btu per hour | I7: (Check your units!) | M7: More than one process/heating unit | O7: Enter the total maximum rated heat input of all units, combined | Q7: Enter amount of fuel burned. Do not use operation hours.
B8: In the previous 12 months, how many | E8: Choose one | G8: 0 | H8: =IF(E8='Data validation'!A31," ",IF(E8='Data validation'!A32,"hours/year",IF(E8='Data validation'!A33,"cu ft/year"))) -> 
M9: A unit that can burn more than one fuel type | O9: Calculate for both fuel types. The highest ton/yr per pollutant is to be used for potential emissions | Q9: Enter amount of each type of fuel burned.
B10: Natural gas potential and actual emissions
C11: a | D11: b | E11: c | F11: d | G11: e
B12: Pollutant | C12: GWP1 | D12: Dryer hourly natural gas usage2 | E12: Actual natural gas burned | F12: Hours in a Year | G12: Emission Factor | H12: Potential Emissions | I12: Actual Emissions | K12: Insignificant Activity4 Limits
D14: (cu ft/hr) | E14: (cu ft/yr) | F14: (hr/yr) | G14: (lbs/cu ft) | H14: (ton/yr) | I14: (tons/yr) | K14: (tons/yr)
D15: (Btu/hr) / (1020 Btu/cu ft) | F15: 24 hrs/day * 365 days/yr | H15: (b * d * e) / 2000 | I15: ( c * e ) / 2000
D16: =G7/1020 -> 0 | E16: =IF(E8='Data validation'!A31,0,IF(E8='Data validation'!A32,((G8/1026)*G7),IF(E8='Data validation'!A33,G8))) -> 0 | F16: 8760 | G16: by pollutant
B17: Criteria air pollutants | I17: Source: EPA AP-42 Chapter 1.4 | J17: =SUM(J18:J30) -> 7
B18: PM | G18: 7.6e-06 | H18: =$D$16*$F$16*$G18/2000 -> 0 | I18: =($E$16*$G18)/2000 -> 0 | J18: =IF(K18>H18,1,0) -> 1 | K18: 1
B19: PM10 | G19: 7.6e-06 | H19: 0 | I19: =($E$16*$G19)/2000 -> 0 | J19: =IF(K19>H19,1,0) -> 1 | K19: 1
B20: PM2.5 | G20: 7.6e-06 | H20: 0 | I20: 0
B21: SOx | G21: 6e-07 | H21: 0 | I21: 0 | J21: 1 | K21: 1
B22: NOx | G22: 0.0001 | H22: 0 | I22: 0 | J22: 1 | K22: 1
B23: VOC | G23: 5.5e-06 | H23: 0 | I23: 0 | J23: 1 | K23: 1
B24: CO | G24: 8.4e-05 | H24: 0 | I24: 0 | J24: 1 | K24: 2
B25: Lead | G25: 5e-10 | H25: 0 | I25: 0 | J25: 0
B26: Greenhouse gas emissions | I26: Source: 40 CFR 98, Subp. C, Table C-1 and C-2 | J26: 0
B27: CO2 2 | C27: 1 | G27: =53.06/1000000*1026/0.453592 -> 0.1200187834 | H27: =$D$16*$F$16*$G27/2000 -> 0 | I27: =($E$16*$G27)/2000 -> 0 | J27: 0
B28: CH4 2 | C28: 25 | G28: =(10^-3)/(10^6)*1026/0.453592 -> 2.261944655e-06 | H28: =$D$16*$F$16*$G28/2000 -> 0 | I28: =($E$16*$G28)/2000 -> 0 | J28: 0
B29: N2O 2 | C29: 298 | G29: =(10^-4)/(10^6)*1026/0.453592 -> 2.261944655e-07 | H29: =$D$16*$F$16*$G29/2000 -> 0 | I29: =($E$16*$G29)/2000 -> 0 | J29: 0
F30: GHG Total (CO2e) 3 | H30: =(C27*H27)+(C28*H28)+(C29*H29) -> 0 | I30: =(C27*I27)+(C28*I28)+(C29*I29) -> 0 | J30: 1 | K30: 1000
B31: Hazardous air pollutants | I31: Source: EPA AP-42 Chapter 1.4
B32: Benzene | G32: =0.0021/10^6 -> 2.1e-09 | H32: =$D$16*$F$16*$G32/2000 -> 0 | I32: =($E$16*$G32)/2000 -> 0
B33: Formaldehyde | G33: =0.075/10^6 -> 7.5e-08 | H33: 0 | I33: 0
B34: Hexane | G34: =1.8/1000000 -> 1.8e-06 | H34: 0 | I34: 0
B35: Naphthalene | G35: 6.1e-10 | H35: 0 | I35: 0
B36: Toluene | G36: 3.4e-09 | H36: 0 | I36: 0
B37: Arsenic | G37: 2e-10 | H37: 0 | I37: 0
B38: Beryllium | G38: 1.2e-11 | H38: 0 | I38: 0
B39: Cadmium | G39: 1.1e-09 | H39: 0 | I39: 0
B40: Chromium | G40: 1.4e-09 | H40: 0 | I40: 0
B41: Cobalt | G41: 8.4e-11 | H41: 0 | I41: 0
B42: Manganese | G42: 3.8e-10 | H42: 0 | I42: 0
B43: Mercury | G43: 2.6e-10 | H43: 0 | I43: 0
B44: Nickel | G44: 2.1e-09 | H44: 0 | I44: 0
B45: Selenium | G45: 2.4e-11 | H45: 0 | I45: 0
F46: HAP total | H46: =SUM(H32:H45) -> 0 | I46: =SUM(I32:I45) -> 0
B47: 1 Global Warming Potential from 40 CFR Part 98, Subpart A, Table A-1
B48: 2 CO2e = carbon dioxide equivalents
B49: 3 See insignificant activities at Minn. R. 7007.1300 and on the 'Permits & Requirements' tab. | G49: Minn. R. 7007.1300

Sheet Propane dryer
B1: =Instructions!F2 -> p-sbap5-28 • 6/6/23
B2: Air emissions from propane grain dryers | M2: Tip: How to use this calculator
B3: Propane combustion | M3: If you have… | O3: For potential emissions | Q3: For actual emissions
B5: What is the total maximum rated heat input for your propane dryers? | G5: 0 | H5: Btu per hour | I5: (Check your units!) | M5: One process/heating unit | O5: Enter maximum rated heat input | Q5: Enter amount of fuel burned or actual operation hours
B6: In the previous 12 months, how many | E6: Choose one | G6: 0 | H6: =IF(E6='Data validation'!A36," ",IF(E6='Data validation'!A37,"hours/year",IF(E6='Data validation'!A38,"gallons/year"))) -> 
H7: =IF(H6="hours/year","(only use if assessing emissions from one unit)"," ") ->  | M7: More than one process/heating unit | O7: Enter the total maximum rated heat input of all units, combined | Q7: Enter amount of fuel burned. Do not use operation hours.
B8: Sulfur content of propane | G8: 0.18 | H8: grains/100 cubic feet
M9: A unit that can burn more than one fuel type | O9: Calculate for both fuel types. The highest ton/yr per pollutant is to be used for potential emissions | Q9: Enter amount of each type of fuel burned.
B11: Propane potential and actual emissions
C12: a | D12: b | E12: c | F12: d | G12: e
B13: Pollutant | C13: GWP1 | D13: Dryer hourly propane usage | E13: Actual propane burned | F13: Hours in a Year | G13: Emission Factor | H13: Potential Emissions | I13: Actual Emissions | K13: Insignificant Activity3 Limits
D15: (gal/hr) | E15: (gal/yr) | F15: (hr/yr) | G15: (lb/gal) | H15: (ton/yr) | I15: (tons/yr) | K15: (tons/yr)
D16: (Btu/hr) / (91500 Btu/gal) | F16: 24 hrs/day * 365 days/yr | H16: (b * d * e) / 2000 | I16: ( c * e ) / 2000
D17: =G5/91500 -> 0 | E17: =IF(E6='Data validation'!A36,0,IF(E6='Data validation'!A37,((G6/91500)*G5),IF(E6='Data validation'!A38,G6))) -> 0 | F17: 8760 | G17: by pollutant
B18: Criteria Air Pollutants | I18: Source: EPA AP-42 Chapter 1.5
B19: PM | G19: =0.7/1000 -> 0.0007 | H19: =$D$17*$F$17*$G19/2000 -> 0 | I19: =($E$17*$G19)/2000 -> 0 | K19: 1
B20: PM10 | G20: =G19 -> 0.0007 | H20: 0 | I20: 0 | J20: =SUM(J21:J33) -> 7 | K20: 1
B21: PM2.5 | G21: =G20 -> 0.0007 | H21: 0 | I21: 0 | J21: =IF(K19>H19,1,0) -> 1
B22: SOx | G22: =0.001*G8 -> 0.00018 | H22: 0 | I22: 0 | J22: =IF(K20>H20,1,0) -> 1 | K22: 1
B23: NOx | G23: 0.013 | H23: 0 | I23: 0 | K23: 1
B24: VOC | G24: 0.001 | H24: 0 | I24: 0 | J24: =IF(K22>H22,1,0) -> 1 | K24: 1
B25: CO | G25: 0.0075 | H25: 0 | I25: 0 | J25: =IF(K23>H23,1,0) -> 1 | K25: 2
B26: Lead | G26: n/a | J26: =IF(K24>H24,1,0) -> 1
B27: Greenhouse Gas Emissions | I27: Source: 40 CFR 98, Subp. C, Table C-1 and C-2 | J27: =IF(K25>H25,1,0) -> 1
B28: CO2 | C28: 1 | G28: =61.46/1000000*91500/0.453592 -> 12.39790384 | H28: =$D$17*$F$17*$G28/2000 -> 0 | I28: =($E$17*$G28)/2000 -> 0
B29: CH4 | C29: 25 | G29: =(1*10^-3)/1000000*91500/0.453592 -> 0.0002017231344 | H29: =$D$17*$F$17*$G29/2000 -> 0 | I29: =($E$17*$G29)/2000 -> 0
B30: N2O | C30: 298 | G30: =(1*10^-4)/1000000*91500/0.453592 -> 2.017231344e-05 | H30: =$D$17*$F$17*$G30/2000 -> 0 | I30: =($E$17*$G30)/2000 -> 0
F31: GHG Total (CO2e) 2 | H31: =(C28*H28)+(C29*H29)+(C30*H30) -> 0 | I31: =(C28*I28)+(C29*I29)+(C30*I30) -> 0 | K31: 1000
B32: Hazardous Air Pollutants | I32: Source: EPA AP-42 Chapter 1.4
B33: Benzene | G33: =(0.0021/10^6)/2488*91500 -> 7.72307074e-08 | H33: =$D$17*$F$17*$G33/2000 -> 0 | I33: =($E$17*$G33)/2000 -> 0 | J33: =IF(K31>H31,1,0) -> 1
B34: Formaldehyde | G34: =(0.075/10^6)/2488*91500 -> 2.75823955e-06 | H34: =$D$17*$F$17*$G34/2000 -> 0 | I34: =($E$17*$G34)/2000 -> 0
B35: Hexane | G35: =(1.8/1000000)/2488*91500 -> 6.61977492e-05 | H35: 0 | I35: 0
B36: Naphthalene | G36: =0.00000000061/2488*91500 -> 2.243368167e-08 | H36: 0 | I36: 0
B37: Toluene | G37: =0.0000000034/2488*91500 -> 1.250401929e-07 | H37: 0 | I37: 0
B38: Arsenic | G38: =0.0000000002/2488*91500 -> 7.355305466e-09 | H38: 0 | I38: 0
B39: Beryllium | G39: =0.000000000012/2488*91500 -> 4.41318328e-10 | H39: 0 | I39: 0
B40: Cadmium | G40: =0.0000000011/2488*91500 -> 4.045418006e-08 | H40: 0 | I40: 0
B41: Chromium | G41: =0.0000000014/2488*91500 -> 5.148713826e-08 | H41: 0 | I41: 0
B42: Cobalt | G42: =0.000000000084/2488*91500 -> 3.089228296e-09 | H42: 0 | I42: 0
B43: Manganese | G43: =0.00000000038/2488*91500 -> 1.397508039e-08 | H43: 0 | I43: 0
B44: Mercury | G44: =0.00000000026/2488*91500 -> 9.561897106e-09 | H44: 0 | I44: 0
B45: Nickel | G45: =0.0000000021/2488*91500 -> 7.72307074e-08 | H45: 0 | I45: 0
B46: Selenium | G46: =0.000000000024/2488*91500 -> 8.826366559e-10 | H46: 0 | I46: 0
F47: HAP total | H47: =SUM(H33:H46) -> 0 | I47: =SUM(I33:I46) -> 0
B48: 1 Global Warming Potential from 40 CFR Part 98, Subpart A, Table A-1
B49: 2 CO2e = carbon dioxide equivalents
B50: 3 See insignificant activities at Minn. R. 7007.1300 and on the 'Permits & Requirements' tab. | G50: Minn. R. 7007.1300

Sheet Fugitive
B1: =Instructions!F2 -> p-sbap5-28 • 6/6/23
B2: Air emissions from fugitive sources
B3: Fugitive emissions1
B4: Potential emissions
B5: Your potential emissions from fugitive sources must be used in identifying whether a permit is required. Fugitive sources include unpaved roads, material handling at stockpiles, and wind erosion of ground piles.
C7: Throughput (maximum capacity) | E7: <-------- Enter the throughput used in the 'grain elevator potential' tab here.
C8: ='Grain elevator potential'!$D$19+'Feed mill potential'!$C$7 -> 0 | D8: tons/year
B10: Actual emissions
B11: Are you applying for or have an Option D registration permit?
B12: If… | C12: Then…
B13: Yes | C13: You are required… | E13: …to calculate actual emissions from fugitive sources (unpaved roads, material handling for stockpiles, and wind erosion of ground piles). Enter actual throughput for each activity below.
B15: No | C15: You are not required…
B19: Unpaved road2
B20: Enter the data for you’re the method of receiving and shipping below to calculate unpaved road emissions. | K20: Table A. Typical silt content values of surface material on industrial unpaved roads
B21: Actual grain shipped and received | K21: AP-42 Table 13.2.2-1
B22: Total amount of grain | E22: tons/year | K22: Industry | L22: Road use | M22: Mean Silt Content (%)
B23: by Trucks | D23: 0 | E23: % | K23: Copper smelting | L23: Plant road | M23: 17
B24: by Rail and Barge | D24: 0 | E24: % | K24: Iron and steel production | L24: Plant road | M24: 6
K25: Sand and gravel processing | L25: Plant road | M25: 4.8
D26: Truck 1 | E26: Truck 2 | L26: Material storage area | M26: 7.1
B27: % of total trips made by truck | D27: 0 | E27: 0 | G27: W = mean vehicle weight (ton) | I27: =D27*((D28+D29)/2)+E27*((E28+E29)/2) -> 0 | K27: Stone quarrying and processing | L27: Plant road | M27: 10
B28: Empty weight of vehicle (tons) | G28: Vpotential = # vehicle trips / yr | I28: =IFERROR(IF((C8/((Fugitive!D27*(Fugitive!D29-Fugitive!D28))+(Fugitive!E27*(Fugitive!E29-Fugitive!E28))))=0,0,IF((C8/((Fugitive!D27*(Fugitive!D29-Fugitive!D28))+(Fugitive!E27*(Fugitive!E29-Fugitive!E28))))>0,(C8/((Fugitive!D27*(Fugitive!D29-Fugitive!D28))+(Fugitive!E27*(Fugitive!E29-Fugitive!E28)))))),0) -> 0 | L28: Haul road to/from pit | M28: 8.3
B29: Full weight of loaded vehicle (tons) | G29: Vactual = # vehicle trips / yr | I29: =IFERROR(IF(((D22*D23)/((Fugitive!D27*(Fugitive!D29-Fugitive!D28))+(Fugitive!E27*(Fugitive!E29-Fugitive!E28))))=0,0,IF(((D22*D23)/((Fugitive!D27*(Fugitive!D29-Fugitive!D28))+(Fugitive!E27*(Fugitive!E29-Fugitive!E28))))>0,((D22*D23)/((Fugitive!D27*(Fugitive!D29-Fugitive!D28))+(Fugitive!E27*(Fugitive!E29-Fugitive!E28)))))),0) -> 0 | K29: Taconite mining and processing | L29: Plant road | M29: 4.3
B30: S = speed on unpaved road, mph | L30: Haul road to/from pit | M30: 5.8
B31: m = miles of unpaved road per trip | H31: Potential Vehicle Miles Traveled (VMT)/yr = Vpotential x miles | I31: =IF((I28*D31)>0,(I28*D31),0) -> 0 | K31: Western surface coal mining | L31: Plant road | M31: 5.1
B32: M = surface moisture content (%) | D32: 0.5 | E32: Enter site data8,9 | H32: Actual Vehicle Miles Traveled (VMT)/yr = Vactual x miles | I32: =IF((I29*D31)>0,(I29*D31),0) -> 0 | L32: Haul road to/from pit | M32: 8.4
B33: s = silt content of road (%) | D33: Enter from Table | E33: See Table A | L33: Scraper route | M33: 17
B34: p = # of days w/ >=0.01" precip/yr | D34: =(133+121+115+109+108)/5 -> 117.2 | E34: 4 | F34: Unpaved road emission factor equation3 | L34: Haul road (freshly graded) | M34: 24
B35: k = PM particle size multiplier | D35: 6 | E35: PM emission factor (lb/VMT) | I35: =IFERROR(((D35*((D33/12)^1)*((D30/30)^0.3)/((D32/0.5)^0.3))-0.00047)*((365-D34)/365),0) -> 0 | K35: Construction sites | L35: Scraper routes | M35: 8.5
B36: k10 = PM10 particle size multiplier | D36: 1.8 | E36: PM10 emission factor (lb/VMT) | I36: =IFERROR(((D36*((D33/12)^1)*((D30/30)^0.5)/((D32/0.5)^0.2))-0.00047)*((365-D34)/365),0) -> 0 | K36: Lumber sawmills | L36: Log yards | M36: 8.4
B37: k2.5 = PM2.5 particle size multiplier | D37: 0.18 | G37: PM2.5 emission factor (lb/VMT) | I37: =IFERROR(((D37*((D33/12)^1)*((D30/30)^0.5)/((D32/0.5)^0.2))-0.00036)*((365-D34)/365),0) -> 0 | K37: Municipal solid waste landfills | L37: Disposal routes | M37: 6.4
B40: Outside storage piles
B41: Maximum amount of grain stored in outside piles | E41: tons/year | F41: Material handling (of outside piles)5 | K41: Table B. Typical silt and moisture contents of materials at various industries | O41: Table C. Wind erosion of ground pile
F42: Individual Emission Factors | G42: Truck to Conveyor (lb/ton) | H42: Conveyor to Pile (lb/ton) | I42: Loading to Truck (lb/ton) | K42: AP-42 Table 13.2.4-1 | O42: Values are over a 5-year period
B43: Actual amount of grain stored in outside piles (last 12 months) | E43: tons/year | K43: Industry | L43: Material | M43: Silt Content (%) | O43: Station | P43: City | Q43: County | R43: State | S43: Percent of Hours Greater Than 12 mph
F44: PM | G44: 0.035 | H44: 0.061 | I44: 0.086 | K44: Iron and steel production | L44: Pellet ore | M44: 4.3 | O44: KRST | P44: Rochester | Q44: Olmsted | R44: MN | S44: 40.9
F45: PM10 | G45: 0.0078 | H45: 0.034 | I45: 0.029 | L45: Lump ore | M45: 9.5 | O45: KMML | P45: Marshall | Q45: Lyon | R45: MN | S45: 39.2
F46: PM2.5 | G46: =0.0013 -> 0.0013 | H46: 0.0058 | I46: 0.0049 | L46: Coal | M46: 4.6 | O46: KAXN | P46: Alexandria | Q46: Douglas | R46: MN | S46: 35.2
L47: Slag | M47: 5.3 | O47: KDLH | P47: Duluth Intl | Q47: Saint Louis | R47: MN | S47: 33.5
B48: Wind erosion of ground pile6 | L48: Flue dust | M48: 13 | O48: KMKT | P48: Mankato | Q48: Blue Earth | R48: MN | S48: 31.2
B49: d = # days pile is active per year | G49: Wind erosion emission factor reference7, 8 | L49: Coke breeze | M49: 4.9 | O49: KHCO | P49: Hallock | Q49: Kittson | R49: MN | S49: 31.2
B50: a = acres of pile base | F50: PM emission factor (lb/day*acre) | I50: =IFERROR((1.7*(D51/1.5)*((365-D53)/235)*(D52/15)),0) -> 0 | L50: Blended ore | M50: 15 | O50: KRWF | P50: Redwood Falls | Q50: Redwood | R50: MN | S50: 30.5
B51: s = silt content of material (%) 4 | D51: Enter from Table | E51: See Table B | G51: PM10 emission factor = PM * 50% | I51: =I50*0.5 -> 0 | L51: Sinter | M51: 0.7 | O51: KMSP | P51: Minneapolis | Q51: Hennepin | R51: MN | S51: 28.2
B52: f = % wind > 12 mph at pile height | D52: Enter from Table | E52: See Table C or enter 43.1 | H52: PM2.5 emission factor = PM * 7.5% | I52: =I50*0.075 -> 0 | L52: Limestone | M52: 1 | O52: KPKD | P52: Park Rapids | Q52: Hubbard | R52: MN | S52: 27.2
B53: p = # of days w/ >=0.01" precip/yr | D53: =(133+121+115+109+108)/5 -> 117.2 | E53: 4 | K53: Stone quarrying and processing | L53: Crushed limestone | M53: 1.6 | O53: KSTP | P53: St Paul | Q53: Ramsey | R53: MN | S53: 24.9
L54: Various limestone products | M54: 3.9 | O54: KBDE | P54: Baudette | Q54: Lake of the Woods | R54: MN | S54: 24.8
K55: Taconite mining and processing | L55: Pellets | M55: 3.4 | O55: KFCM | P55: Eden Prarie | Q55: Hennepin | R55: MN | S55: 23
B56: Fugitive emission totals | L56: Tailings | M56: 11 | O56: KSTC | P56: St Cloud | Q56: Sherburne | R56: MN | S56: 22.7
B57: Potential fugitive emissions | C57: Unpaved road (VMT/yr) | E57: Material Handling (ton/yr) | G57: Ground pile (365 days * acre) / yr | K57: Western surface coal mining | L57: Coal | M57: 6.2 | O57: KMIC | P57: Crystal | Q57: Hennepin | R57: MN | S57: 21.7
L58: Overburden | M58: 7.5 | O58: KBRD | P58: Brainerd | Q58: Crow Wing | R58: MN | S58: 20.9
C59: =I31 -> 0 | E59: =D41 -> 0 | G59: =D50*365 -> 0 | I59: Total Potential Emissions (ton/year) | L59: Exposed ground | M59: 15 | O59: KHIB | P59: Hibbing | Q59: Saint Louis | R59: MN | S59: 15.8
C60: Emission factor (lb/VMT) | D60: Potential emissions (ton/yr) | E60: Emission factor (lb/ton) | F60: Potential emissions (ton/yr) | G60: Emission factor (lb/d*acre) | H60: Potential emissions (ton/yr) | K60: Coal-fired power plant | L60: Coal ( as received) | M60: 2.2 | O60: KINL | P60: International Falls | Q60: Koochiching | R60: MN | S60: 13.5
K61: Municipal solid waste landfills | L61: Sand | M61: 2.6 | O61: KEST | P61: Estherville | Q61: Emmet | R61: IA | S61: 43.1
B62: PM | C62: =I35 -> 0 | D62: =C59*C62/2000 -> 0 | E62: =G44+H44+I44 -> 0.182 | F62: =E59*E62/2000 -> 0 | G62: =I50 -> 0 | H62: =G59*G62/2000 -> 0 | I62: =D62+F62+H62 -> 0 | L62: Slag | M62: 3.8 | O62: KMCW | P62: Mason City | Q62: Cerro Gordo | R62: IA | S62: 40.5
B63: PM10 | C63: =I36 -> 0 | D63: =C59*C63/2000 -> 0 | E63: =G45+H45+I45 -> 0.0708 | F63: =E59*E63/2000 -> 0 | G63: =I51 -> 0 | H63: =G59*G63/2000 -> 0 | I63: =D63+F63+H63 -> 0 | L63: Cover | M63: 9 | O63: KFAR | P63: Fargo | Q63: Cass | R63: ND | S63: 40.3
B64: PM2.5 | C64: =I37 -> 0 | D64: =C59*C64/2000 -> 0 | E64: =G46+H46+I46 -> 0.012 | F64: =E59*E64/2000 -> 0 | G64: =I52 -> 0 | H64: =G59*G64/2000 -> 0 | I64: =D64+F64+H64 -> 0 | L64: Clay/dirt mix | M64: 9.2 | O64: KGFK | P64: Grand Forks | Q64: Grand Forks | R64: ND | S64: 38.1
L65: Clay | M65: 6 | O65: KFSD | P65: Sioux Falls | Q65: Minnehaha | R65: SD | S65: 35.2
L66: Fly ash | M66: 80 | O66: KLSE | P66: La Crosse | Q66: La Crosse | R66: WI | S66: 22
B67: Actual fugitive emissions | C67: Unpaved road (VMT/yr) | E67: Material Handling (ton/yr) | G67: Ground pile (days * acre) / yr | L67: Misc. fill materials | M67: 12
C69: =I32 -> 0 | E69: =D43 -> 0 | G69: =D49*D50 -> 0 | I69: Total Actual Emissions (ton/year)
C70: Emission factor (lb/VMT) | D70: Actual emissions (ton/yr) | E70: Emission factor (lb/ton) | F70: Actual emissions (ton/yr) | G70: Emission factor (lb/d*acre) | H70: Actual emissions (ton/yr)
B72: PM | C72: =I35 -> 0 | D72: =C69*C72/2000 -> 0 | E72: =E62 -> 0.182 | F72: =E69*E72/2000 -> 0 | G72: =G62 -> 0 | H72: =G69*G72/2000 -> 0 | I72: =D72+F72+H72 -> 0
B73: PM10 | C73: =I36 -> 0 | D73: =C69*C73/2000 -> 0 | E73: =E63 -> 0.0708 | F73: =E69*E73/2000 -> 0 | G73: =G63 -> 0 | H73: =G69*G73/2000 -> 0 | I73: =D73+F73+H73 -> 0
B74: PM2.5 | C74: 0 | D74: =C69*C74/2000 -> 0 | E74: =E64 -> 0.012 | F74: =E69*E74/2000 -> 0 | G74: =G64 -> 0 | H74: =G69*G74/2000 -> 0 | I74: =D74+F74+H74 -> 0
B78: References
B79: 1 Sources: | C79: Minn. Rule 7007.0200 Subpart 2. B. | E79: Minn. Rule 7007.1130 Subpart 4. | G79: Minn. Rule 7007.1300 Subpart 3. J.
B80: 2 Unpaved road emissions reference sources: | E80: Source: AP-42 13.2.2 (11/2006)
B81: 3 Unpaved road particule matter emission factor equation (lb/VMT) | F81: PM = {{[k[(s/12)^1][(S/30)^0.3)]/[(M/0.5)^0.3]}-0.00047}*(365-p/365)
B82: PM-10 = {{[k[(s/12)^1][(S/30)^0.5)]/[(M/0.5)^0.2]}-0.00047}*(365-p/365) | F82: PM-10 = {{[k[(s/12)^1][(S/30)^0.5)]/[(M/0.5)^0.2]}-0.00036}*(365-p/365)
B83: 4 Average across MN precipitation data in Comparative Climatic Data (CCD-2015) tables, page 42. | G83: https://www.ncdc.noaa.gov/ghcn/comparative-climatic-data
D84: 5 Material handling reference | F84: Source: Based on AP-42 9.9 (03/2003)
D85: 6 Wind erosion from continuously active piles | F85: EPA Control of open fugitive dust sources, Sept. 1988, Equation 4-9
D86: 7 Wind erosion emission factor equation (lb/day/acre)=1.7(s/1.5)((365-p)/235)(f/15)
D87: 8 PM10 and PM2.5 fractions, updated Nov 2006 | F87: AP-42 13.2.5 Aerodynamic particle size multipliers for Equation 2
D88: 9 Default moisture content value of 0.5 percent in Equation 1b is discouraged and reduces emission factor quality by 2 letters.

Sheet Potential emissions
B1: =Instructions!F2 -> p-sbap5-28 • 6/6/23
B2: Potential emissions: Grain elevators and feed mills
B3: =IF('Data validation'!B20="yes","The flag next to a potential emission total means your potential emissions exceed the permitting threshold and a permit is required.","These pollutant totals represent the information you entered in the blue tabs.") -> These pollutant totals represent the information you entered in the blue tabs. | K3: Without Insignificant Activities
B4: Pollutant | C4: Grain Elevator | D4: Feed Mill | E4: Natural Gas | F4: Propane | G4: Fugitive | H4: Potential Emissions | I4: Permitting Threshold | K4: Potential Emissions | L4: Insignificant Activity Limits
C6: (ton/yr) | D6: (ton/yr) | E6: (ton/yr) | F6: (ton/yr) | G6: (ton/yr) | H6: (ton/yr) | I6: (ton/yr) | K6: (ton/yr) | L6: (ton/yr)
B7: Criteria Air Pollutants | E7: =IF('Natural gas dryer'!J17=7,"Insignificant Activity"," ") -> Insignificant Activity | F7: =IF('Propane dryer'!J20=7,"Insignificant Activity"," ") -> Insignificant Activity
B8: PM | C8: ='Grain elevator potential'!G70 -> 0 | D8: ='Feed mill potential'!G53 -> 0 | E8: ='Natural gas dryer'!H18 -> 0 | F8: ='Propane dryer'!H19 -> 0 | G8: =Fugitive!I62 -> 0 | H8: =SUM(C8:G8) -> 0 | I8: 100 | K8: =H8+IF($E$7="Insignificant Activity",-E8,0)+IF($F$7="Insignificant Activity",-F8,0) -> 0 | L8: 1
B9: PM10 | C9: ='Grain elevator potential'!J70 -> 0 | D9: ='Feed mill potential'!J53 -> 0 | E9: ='Natural gas dryer'!H19 -> 0 | F9: ='Propane dryer'!H20 -> 0 | G9: =Fugitive!I63 -> 0 | H9: =SUM(C9:G9) -> 0 | I9: 25 | K9: =H9+IF($E$7="Insignificant Activity",-E9,0)+IF($F$7="Insignificant Activity",-F9,0) -> 0 | L9: 1
B10: PM2.5 | C10: ='Grain elevator potential'!L70 -> 0 | D10: ='Feed mill potential'!L53 -> 0 | E10: ='Natural gas dryer'!H20 -> 0 | F10: ='Propane dryer'!H21 -> 0 | G10: =Fugitive!I64 -> 0 | H10: =SUM(C10:G10) -> 0 | I10: 100 | J10: =J11+J12 -> 2 | K10: 0 | L10: 1
B11: SOx | E11: ='Natural gas dryer'!H21 -> 0 | F11: ='Propane dryer'!H22 -> 0 | H11: 0 | I11: 50 | J11: =IF(E12>1,1,0)+IF(F12>1,1,0) -> 0 | K11: 0 | L11: 1
B12: NOx | E12: ='Natural gas dryer'!H22 -> 0 | F12: ='Propane dryer'!H23 -> 0 | H12: 0 | I12: 100 | J12: =IF(E12=0,1,0)+IF(F12=0,1,0) -> 2 | K12: 0 | L12: 1
B13: VOC | E13: ='Natural gas dryer'!H23 -> 0 | F13: ='Propane dryer'!H24 -> 0 | H13: 0 | I13: 100 | K13: 0 | L13: 1
B14: CO | E14: ='Natural gas dryer'!H24 -> 0 | F14: ='Propane dryer'!H25 -> 0 | H14: 0 | I14: 100 | K14: 0 | L14: 2
B15: Lead | E15: ='Natural gas dryer'!H25 -> 0 | F15: ='Propane dryer'!H26 -> 0 | H15: 0 | I15: 0.5 | K15: 0
B16: Greenhouse Gas Emissions
B17: CO2 | E17: ='Natural gas dryer'!H27 -> 0 | F17: ='Propane dryer'!H28 -> 0 | H17: 0 | K17: 0
B18: CH4 | E18: ='Natural gas dryer'!H28 -> 0 | F18: ='Propane dryer'!H29 -> 0 | H18: 0 | K18: 0
B19: N2O | E19: ='Natural gas dryer'!H29 -> 0 | F19: ='Propane dryer'!H30 -> 0 | H19: 0 | K19: 0
B20: GHG Total CO2e | E20: ='Natural gas dryer'!H30 -> 0 | F20: ='Propane dryer'!H31 -> 0 | H20: =(H17*1)+(H18*25)*(H19*298) -> 0 | I20: 100000 | K20: =SUM(K17:K19) -> 0 | L20: 1000
B21: Hazardous Air Pollutants
B22: Benzene | E22: ='Natural gas dryer'!H32 -> 0 | F22: ='Propane dryer'!H33 -> 0 | H22: 0 | K22: =H22+IF($E$7="Insignificant Activity",-E22,0)+IF($F$7="Insignificant Activity",-F22,0) -> 0
B23: Formaldehyde | E23: ='Natural gas dryer'!H33 -> 0 | F23: ='Propane dryer'!H34 -> 0 | H23: 0 | K23: 0
B24: Hexane | E24: ='Natural gas dryer'!H34 -> 0 | F24: ='Propane dryer'!H35 -> 0 | H24: 0 | K24: 0
B25: Naphthalene | E25: ='Natural gas dryer'!H35 -> 0 | F25: ='Propane dryer'!H36 -> 0 | H25: =SUM(C25:G25) -> 0 | K25: 0
B26: Toluene | E26: ='Natural gas dryer'!H36 -> 0 | F26: ='Propane dryer'!H37 -> 0 | H26: 0 | K26: 0
B27: Arsenic | E27: ='Natural gas dryer'!H37 -> 0 | F27: ='Propane dryer'!H38 -> 0 | H27: 0 | K27: 0
B28: Beryllium | E28: ='Natural gas dryer'!H38 -> 0 | F28: ='Propane dryer'!H39 -> 0 | H28: 0 | K28: 0
B29: Cadmium | E29: ='Natural gas dryer'!H39 -> 0 | F29: ='Propane dryer'!H40 -> 0 | H29: 0 | K29: 0
B30: Chromium | E30: ='Natural gas dryer'!H40 -> 0 | F30: ='Propane dryer'!H41 -> 0 | H30: 0 | K30: 0
B31: Cobalt | E31: ='Natural gas dryer'!H41 -> 0 | F31: ='Propane dryer'!H42 -> 0 | H31: 0 | K31: 0
B32: Manganese | E32: ='Natural gas dryer'!H42 -> 0 | F32: ='Propane dryer'!H43 -> 0 | H32: 0 | K32: 0
B33: Mercury | E33: ='Natural gas dryer'!H43 -> 0 | F33: ='Propane dryer'!H44 -> 0 | H33: 0 | K33: 0
B34: Nickel | E34: ='Natural gas dryer'!H44 -> 0 | F34: ='Propane dryer'!H45 -> 0 | H34: 0 | K34: 0
B35: Selenium | E35: ='Natural gas dryer'!H45 -> 0 | F35: ='Propane dryer'!H46 -> 0 | H35: 0 | K35: 0
B36: HAP Indiv. Max | C36: =IF(H36=H22,B22,IF(H36=H23,B23,IF(H36=H24,B24,IF(H36=H25,B25,IF(H36=H26,B26,IF(H36=H27,B27,IF(H36=H28,B28,IF(H36=H29,B29,IF(H36=H30,B30,IF(H36=H31,B31,IF(H36=H32,B32,IF(H36=H33,B33,IF(H36=H34,B34,IF(H36=H35,B35)))))))))))))) -> Benzene | H36: =MAX(H22:H35) -> 0 | I36: 10 | K36: =MAX(K22:K35) -> 0
B37: HAP total | H37: =SUM(H22:H35) -> 0 | I37: 25 | K37: =SUM(K22:K35) -> 0

Sheet Actual emissions
B1: =Instructions!F2 -> p-sbap5-28 • 6/6/23
B2: Actual emissions: Grain elevators and feed mills
B3: =IF('Data validation'!B23="yes","The flag next to your actual emissions total indicates that your business exceeds the Option D limit and an individual permit is required.","These pollutant totals represent the information you entered in the blue tabs.") -> These pollutant totals represent the information you entered in the blue tabs.
B4: Pollutant | C4: Grain Elevator | D4: Feed Mill | E4: Natural Gas | F4: Propane | G4: Fugitive | H4: Actual Emissions | I4: Opt. D Permit Limits
C6: (ton/yr) | D6: (ton/yr) | E6: (ton/yr) | F6: (ton/yr) | G6: (ton/yr) | H6: (ton/yr) | I6: (ton/yr)
B7: Criteria Air Pollutants
B8: PM | C8: ='Grain elevator actual'!G36 -> 0 | D8: ='Feed mill actual'!G32 -> 0 | E8: ='Natural gas dryer'!I18 -> 0 | F8: ='Propane dryer'!I19 -> 0 | G8: =Fugitive!I72 -> 0 | H8: =SUM(C8:G8) -> 0 | I8: 50
B9: PM10 | C9: ='Grain elevator actual'!J36 -> 0 | D9: ='Feed mill actual'!J32 -> 0 | E9: ='Natural gas dryer'!I19 -> 0 | F9: ='Propane dryer'!I20 -> 0 | G9: =Fugitive!I73 -> 0 | H9: =SUM(C9:G9) -> 0 | I9: 50
B10: PM2.5 | C10: ='Grain elevator actual'!L36 -> 0 | D10: ='Feed mill actual'!L32 -> 0 | E10: ='Natural gas dryer'!I20 -> 0 | F10: ='Propane dryer'!I21 -> 0 | G10: =Fugitive!I74 -> 0 | H10: =SUM(C10:G10) -> 0
B11: SOx | E11: ='Natural gas dryer'!I21 -> 0 | F11: ='Propane dryer'!I22 -> 0 | H11: 0 | I11: 50
B12: NOx | E12: ='Natural gas dryer'!I22 -> 0 | F12: ='Propane dryer'!I23 -> 0 | H12: 0 | I12: 50
B13: VOC | E13: ='Natural gas dryer'!I23 -> 0 | F13: ='Propane dryer'!I24 -> 0 | H13: 0 | I13: 50
B14: CO | E14: ='Natural gas dryer'!I24 -> 0 | F14: ='Propane dryer'!I25 -> 0 | H14: 0 | I14: 50
B15: Lead | E15: ='Natural gas dryer'!I25 -> 0 | F15: ='Propane dryer'!I26 -> 0 | H15: 0 | I15: 0.5
B16: Greenhouse Gas Emissions
B17: CO2 | E17: ='Natural gas dryer'!I27 -> 0 | F17: ='Propane dryer'!I28 -> 0 | H17: =SUM(C17:G17) -> 0
B18: CH4 | E18: ='Natural gas dryer'!I28 -> 0 | F18: ='Propane dryer'!I29 -> 0 | H18: =SUM(C18:G18) -> 0
B19: N2O | E19: ='Natural gas dryer'!I29 -> 0 | F19: ='Propane dryer'!I30 -> 0 | H19: =SUM(C19:G19) -> 0
B20: GHG Total CO2e | E20: ='Natural gas dryer'!I30 -> 0 | F20: ='Propane dryer'!I31 -> 0 | H20: =SUM(C20:G20) -> 0 | I20: 50000
B21: Hazardous Air Pollutants
B22: Benzene | E22: ='Natural gas dryer'!I32 -> 0 | F22: ='Propane dryer'!I33 -> 0 | H22: =SUM(C22:G22) -> 0 | I22: =SUM(E22:F22) -> 0
B23: Formaldehyde | E23: ='Natural gas dryer'!I33 -> 0 | F23: ='Propane dryer'!I34 -> 0 | H23: 0 | I23: =SUM(E23:F23) -> 0
B24: Hexane | E24: ='Natural gas dryer'!I34 -> 0 | F24: ='Propane dryer'!I35 -> 0 | H24: 0 | I24: 0
B25: Naphthalene | E25: ='Natural gas dryer'!I35 -> 0 | F25: ='Propane dryer'!I36 -> 0 | H25: 0 | I25: 0
B26: Toluene | E26: ='Natural gas dryer'!I36 -> 0 | F26: ='Propane dryer'!I37 -> 0 | H26: 0 | I26: 0
B27: Arsenic | E27: ='Natural gas dryer'!I37 -> 0 | F27: ='Propane dryer'!I38 -> 0 | H27: 0 | I27: 0
B28: Beryllium | E28: ='Natural gas dryer'!I38 -> 0 | F28: ='Propane dryer'!I39 -> 0 | H28: 0 | I28: 0
B29: Cadmium | E29: ='Natural gas dryer'!I39 -> 0 | F29: ='Propane dryer'!I40 -> 0 | H29: 0 | I29: 0
B30: Chromium | E30: ='Natural gas dryer'!I40 -> 0 | F30: ='Propane dryer'!I41 -> 0 | H30: 0 | I30: 0
B31: Cobalt | E31: ='Natural gas dryer'!I41 -> 0 | F31: ='Propane dryer'!I42 -> 0 | H31: 0 | I31: 0
B32: Manganese | E32: ='Natural gas dryer'!I42 -> 0 | F32: ='Propane dryer'!I43 -> 0 | H32: 0 | I32: 0
B33: Mercury | E33: ='Natural gas dryer'!I43 -> 0 | F33: ='Propane dryer'!I44 -> 0 | H33: 0 | I33: 0
B34: Nickel | E34: ='Natural gas dryer'!I44 -> 0 | F34: ='Propane dryer'!I45 -> 0 | H34: 0 | I34: 0
B35: Selenium | E35: ='Natural gas dryer'!I45 -> 0 | F35: ='Propane dryer'!I46 -> 0 | H35: 0 | I35: 0
B36: HAP Indiv. Max | C36: =IF(H36=H22,B22,IF(H36=H23,B23,IF(H36=H24,B24,IF(H36=H25,B25,IF(H36=H26,B26,IF(H36=H27,B27,IF(H36=H28,B28,IF(H36=H29,B29,IF(H36=H30,B30,IF(H36=H31,B31,IF(H36=H32,B32,IF(H36=H33,B33,IF(H36=H34,B34,IF(H36=H35,B35)))))))))))))) -> Benzene | H36: =MAX(H22:H35) -> 0 | I36: 5
B37: HAP total | E37: ='Natural gas dryer'!H78 -> 0 | F37: ='Propane dryer'!H80 -> 0 | H37: =SUM(H22:H35) -> 0 | I37: 12.5

Sheet Permits & requirements
B1: =Instructions!F2 -> p-sbap5-28 • 6/6/23
B2: Permits and requirements
B3: The need for a permit is based on your entire business's potential air emissions. All activities that put pollutants into the air (including paint and solvent use, fuel use for stationary equipment, and other activities - not associated with maintenance) need to be assessed in addition to the grain, mill, and dryer emissions included in this calculator. Once you determine if you need a permit, based on whether an NSPS applies and your total potential emissions, you can then use your actual emissions to see which permit is the best fit for your business.
B7: Content below is based on the information entered into this calculator and is not an official MPCA permit determination.
B10: Is a permit required? | F10: What type of permit? Assumes all air pollutant activities are entered into this calculator. If you have additional air emission sources, the recommendation below cannot be used. You must assess your facility's total potential emissions from all sources to identify your permitting needs.
B11: The summary below is based on information you entered in the blue tabs.
B12: Your business's potential emissions | C12: Your business's actual emissions | D12: A federal NSPS | E12: A federal NESHAP
B14: =IF('Potential emissions'!B3="The flag next to a potential emission total means your potential emissions exceed the permitting threshold and a permit is required.","do","do not") -> do not | C14: =IF('Actual emissions'!B3="The flag next to your actual emissions total indicates that your business exceeds the Option D limit and an individual permit is required.","do","do not") -> do not | D14: =IF('Data validation'!B13>0,"Return to Federal tab and answer Y/N",IF(AND('Data validation'!B13=0,'Data validation'!B6>0),"does","does not")) -> Return to Federal tab and answer Y/N | E14: =IF('Federal standards'!N33="Choose Y/N","Return to Federal tab and answer Y/N",IF('Federal standards'!N33="Yes","does",IF('Federal standards'!N33="no","does not"))) -> Return to Federal tab and answer Y/N
B17: exceed permit thresholds | C17: exceed Option D limits | D17: apply to your business | E17: apply to your business
B19: Potential emissions exceed permit thresholds | C19: Actual emissions exceed Option D limits | D19: Federal NSPS applies? | E19: Federal NESHAP applies? | F19: Which permit do you need? | H19: More Information | I19: Forms
B23: no | C23: n/a | D23: no | E23: Applicability of a NESHAP does not determine if a permit is required. | F23: Below permit thresholds | H23: n/a | I23: n/a
B24: no | C24: n/a | D24: yes | F24: Registration Option A | H24: Info about Air Registration Permits | I24: Application Forms, scroll to Registration Section
B25: yes | C25: no | D25: no | F25: Registration Option D
B26: yes | C26: no | D26: yes | F26: Registration Option D
B27: yes | C27: yes | D27: no | F27: Other state or federal permit | H27: Info about Air Permits | I27: Application Forms, scroll to Section 1
B28: yes | C28: yes | D28: yes | F28: Other state or federal permit
B30: Types of insignificant activities | D30: Minn. R. 7007.1300
B31: subp. 2 | C31: Not required to be listed.
B32: supb. 3 | C32: Required to be listed but emissions do not need to be included in total facility emission calculations, unless requested by MPCA.
B33: subp. 4 | C33: Required to be listed if applying for a Part 70 (Federal permit or federally enforceable permit limits) but emissions do not need to be included in total facility emission calculations, unless requested by MPCA.
B35: If emissions units listed in 7007.1300 are subject to additional requirements under section 114(a)(3) of the act (Monitoring Requirements) or section 112 of the act (Hazardous Air Pollutants), or if part of a title I modification, or, if accounted for, make a stationary source subject to a part 70 permit, emissions from the emissions units must be calculated in the permit application.
B38: If all emission points are insignificant and total emissions do not exceed permitting thresholds, a permit is not required. Comply with any applicable regulations.
B41: Also see conditionally insignificant activities and conditionally exempt sources.

Sheet Data validation (hidden)
A1: =Instructions!F2 -> p-sbap5-28 • 6/6/23
A2: Data Validation
A4: State Standards tab | B4: Equation/reference
A5: Choose one | B5: NSPS applies
A6: Located in Anoka, Carver, Dakota, Hennepin, Ramsey, Scott, or Washington County | B6: =SUM(B7:B9) -> 0
A7: Located in a city with a population of 7,500 people or more | B7: =COUNTIF('Federal standards'!N4,"Yes") -> 0
A8: Located in a city with a population of less than 7,500 people | B8: =COUNTIF('Federal standards'!N42,"Yes") -> 0
A9: Not located in city limits or the options above
A11: Choose one
A12: More than 180,000 tons | B12: NSPS no selection
A13: Between 120,000 and 180,000 tons | B13: =SUM(B14:B16) -> 2
A14: Less than 120,000 tons | B14: =IF('Federal standards'!N4="Choose Y/N",1,0) -> 1
B15: =IF('Federal standards'!N42="Choose Y/N",1,0) -> 1
A16: Choose one
A17: Prior to Jan. 1, 1984
A18: On or after Jan. 1, 1984
B19: Potential Emissions exceed
A20: Grain Elevator Potential | B20: =IF(OR('Potential emissions'!H20>=100000,OR('Potential emissions'!H8>=100,OR('Potential emissions'!H9>=25,OR('Potential emissions'!H10>=50,OR('Potential emissions'!H11>=50,OR('Potential emissions'!H12>=100,OR('Potential emissions'!H13>=100,OR('Potential emissions'!H14>=100,OR('Potential emissions'!H15>=0.5,OR('Potential emissions'!H61>=25,'Potential emissions'!H60>=10)))))))))),"yes","no") -> no
A21: Choose one
A22: Country elevator | B22: Actual emissions exceed
A23: Terminal elevator | B23: =IF(OR('Actual emissions'!H20>=50000,OR('Actual emissions'!H8>=50,OR('Actual emissions'!H9>=50,OR('Actual emissions'!H10>=50,OR('Actual emissions'!H11>=50,OR('Actual emissions'!H12>=50,OR('Actual emissions'!H13>=50,OR('Actual emissions'!H14>=50,OR('Actual emissions'!H15>=0.25,OR('Actual emissions'!H61>=12.5,'Actual emissions'!H60>=5)))))))))),"yes","no") -> no
A25: General selection
A26: Choose Y/N
A27: Yes | B27: Fugitives
A28: No | B28: Potential emission calculation
B29: Choose one
A30: Natural Gas - Actual Use | B30: NSPS for grain elevators or feed mills applies
A31: Choose one | B31: Applying for an Option D permit
A32: hours were the units actually operated?
A33: cubic feet of gas were actually used? | B33: Potential emission calculation
B34: Choose one
A35: Propane | B35: NSPS for grain elevators or feed mills applies
A36: Choose one | B36: NSPS does not apply
A37: hours were the units actually operated?
A38: gallons of propane were actually used?
